Workbook

Sheet Income
A1: Manchester County Bridge Association | K1: Accounts 2015 - 2016
A3: Income | S3: (March) | T3: (July)
M4: League & | R4: Merville | S4: Pairs | T4: Teams | W4: Summer | X4: Autumn | AA4: Players Progress | AB4: EBU delegate | AD4: Outstanding | AE4: Prior Year
G5: EBU | H5: EBU | I5: EBU P2P | J5: EBU P2P | K5: MCBA | L5: EBU | M5: Cup | N5: Higson | O5: Over | P5: EBU | Q5: Gazette | R5: Goldstone | S5: Green | T5: Green | U5: Manchester | V5: Ben | W5: Intermediate | X5: Intermediate | Y5: Cantor Cup | Z5: Newcomers | AA5: and Kevin Comrie | AB5: Expenses | AC5: Seminars | AD5: from previous | AE5: Corrections | AF5: Totals
A6: Date | B6: Reference | C6: Details | D6: Other | E6: Cash | F6: Bank | G6: Direct Membs | H6: P2P (clubs) | I6: League | J6: Cup | K6: Affiliates | L6: League | M6: >4 players | N6: Cup & Plate | O6: Payment | P6: BFA | Q6: Trophy | R6: Trophy | S6: Points | T6: Points | U6: Congress | V6: Franks | W6: Pairs | X6: Pairs | Z6: League | AA6: Cups | AD6: Year
C8: B/Fwd Balance | E8: 14 | F8: 3760.23 | AF8: =F8+E8 -> 3774.23
A9: League Creditors @31/03/2015 (overpaid us) | AF9: =SUM(G9:AE9) -> 0
C10: Red Bull | D10: 10 | AD10: 10 | AF10: 10
C11: Cheshire Cheeses | D11: 4 | AD11: 4 | AF11: 4
C12: Sedgeley | D12: 5 | AD12: 5 | AF12: 5
C13: New Connections | D13: 10 | AD13: 10 | AF13: 10
C14: Rejuvenated | D14: 11 | AD14: 11 | AF14: 11
C15: Manchester Cardinals | D15: 5 | AD15: 5 | AF15: 5
C16: Astra Zenaca Stars | D16: 10 | AD16: 10 | AF16: 10
C17: Four Dummies | D17: 15 | AD17: 15 | AF17: 15
C18: Touchung the Void | D18: 5 | AD18: 5 | AF18: 5
A19: League Debtors @31/03/2015 | C19: (underpaid us) | AF19: 0
C20: Agamemnon | D20: -5 | AD20: -5 | AF20: -5
C21: Petersfield | D21: -36 | AD21: -36 | AF21: -36
C22: Imps R Us | D22: -6 | AD22: -6 | AF22: -6
C23: Manchester S | D23: -6 | AD23: -6 | AF23: -6
C24: Double Trouble | D24: -12 | AD24: -12 | AF24: -12
C25: The Unconventionals | D25: -5 | AD25: -5 | AF25: -5
C26: Bombay Sapphires | D26: -35 | AD26: -35 | AF26: -35
C27: Adlan | D27: -24 | AD27: -24 | AF27: -24
C28: Jems | D28: -25 | AD28: -25 | AF28: -25
C29: Newcomers | D29: -25 | AD29: -25 | AF29: -25
AF30: 0
A31: 14/04/2016 | B31: Direct | C31: EBU-April P2P | F31: 317.59 | H31: 317.59 | AF31: 317.59
A32: 21/04/2016 | B32: Direct | C32: EBU-Direct Members | F32: 65 | G32: 65 | AF32: 65
A33: 2016-12-05 | B33: Direct | C33: EBU-Direct Members | F33: 140 | G33: 140 | AF33: 140
A34: 2016-02-06 | B34: Direct | C34: League last yr….Newcomers | F34: 25 | AD34: 25 | AF34: 25
A35: 2016-02-06 | B35: Direct | C35: EBU-May P2P | F35: 125.09 | H35: 125.09 | AF35: 125.09
A36: 2016-09-06 | B36: Direct | C36: EBU-Direct Members | F36: 10 | G36: 10 | AF36: 10
A37: 14/06/2016 | B37: 10175 | C37: Summer Intermediate Pairs-chqs | F37: 240 | W37: 240 | AF37: 240
A38: 30/06/2016 | B38: Direct | C38: EBU P2P Jun | F38: 313.74 | H38: 313.74 | AF38: 313.74
A39: 2016-05-07 | B39: Direct | C39: League-The 4 Dummies | F39: 55 | I39: 5 | J39: 5 | L39: 30 | M39: 5 | N39: 10 | O39: 15 | AD39: -15 | AF39: 55
AF40: 0
A41: 2016-11-07 | B41: Direct | C41: League-Last Minute.bid-A.H.Wiseberg | F41: 50 | I41: 5 | L41: 30 | O41: 15 | AF41: 50
A42: 13/07/2016 | B42: Direct | C42: League-Eureka-A.Morris | F42: 35 | I42: 5 | L42: 30 | AF42: 35
A43: 14/07/2016 | B43: Direct | C43: EBU-Direct Members | F43: 10 | G43: 10 | AF43: 10
A44: 15/07/2016 | B44: Direct | C44: League-Radbroke bandits-J PC Regan | F44: 35 | I44: 5 | L44: 30 | AF44: 35
A45: 15/07/2016 | B45: Direct | C45: League-The Transfers-J S Marks | F45: 40 | I45: 5 | L45: 30 | M45: 5 | AF45: 40
A46: 19/07/2016 | B46: Direct | C46: League - Sedgley-B&M Kaye | F46: 72 | I46: 5 | J46: 5 | K46: 18 | L46: 30 | M46: 5 | N46: 10 | O46: 4 | AD46: -5 | AF46: 72
A47: 19/07/2016 | B47: Direct | C47: League - Red Bull - MJ &E Rosenbaum | F47: 50 | I47: 5 | J47: 5 | L47: 30 | N47: 10 | O47: 10 | AD47: -10 | AF47: 50
A48: 20/07/16 | B48: Direct | C48: League-New Connections-R Hopton | F48: 60 | I48: 5 | J48: 5 | L48: 30 | M48: 10 | N48: 20 | AD48: -10 | AF48: 60
A49: 20/07/16 | B49: Direct | C49: League-Winning Ways-S Triggs | F49: 35 | I49: 5 | L49: 30 | AF49: 35
A50: 20/07/16 | B50: Direct | C50: League-Newcomers-Stephen Harlow | F50: 35 | I50: 5 | L50: 30 | AF50: 35
A51: 20/07/16 | B51: Direct | C51: League-Hindsight Convention-Alan Tranter | F51: 67 | I51: 5 | J51: 5 | K51: 12 | L51: 30 | M51: 5 | N51: 10 | AF51: 67
A52: 21/07/16 | B52: Direct | C52: League-Midland Railway-AS Townsend | F52: 55 | I52: 5 | J52: 5 | L52: 30 | M52: 5 | N52: 10 | AF52: 55
A53: 21/07/16 | B53: Direct | C53: League-Double Diamonds-N Catterall | F53: 35 | I53: 5 | L53: 30 | AF53: 35
A54: 22/07/16 | B54: Direct | C54: EBU P2P July | F54: 113.96 | H54: 113.96 | AF54: =SUM(H54:AE54) -> 113.96
A55: 22/07/16 | B55: Direct | C55: League-Petersfield-Thornton-Chan | F55: 100 | I55: 5 | J55: 5 | L55: 30 | M55: 5 | N55: 10 | O55: 9 | AD55: 36 | AF55: =SUM(G55:AE55) -> 100
A56: 20/07/16 | B56: Direct | C56: League-Touching the Void-A Oliver | F56: 35 | I56: 5 | L56: 30 | O56: 5 | AD56: -5 | AF56: 35
A57: 220/07/16 | B57: Direct | C57: League-Tricksters-K Higgins | F57: 50 | I57: 5 | J57: 5 | L57: 30 | N57: 10 | AF57: 50
A58: 25/07/16 | B58: Direct | C58: League-Manchester A-R Ashleigh | F58: 50 | I58: 5 | J58: 5 | L58: 30 | N58: 10 | AF58: 50
A59: 25/07/16 | B59: Direct | C59: League-Inverted Minors-JE Blakey | F59: 60 | I59: 5 | J59: 5 | L59: 30 | M59: 10 | N59: 10 | AF59: 60
A60: 25/07/16 | B60: Direct | C60: League-Leaders with Attitude-H Potts | F60: 50 | I60: 5 | J60: 5 | L60: 30 | N60: 10 | AF60: 50
A61: 26/07/16 | B61: Direct | C61: League-The Unconventionals-P Hegarty | F61: 40 | I61: 5 | L61: 30 | M61: 5 | AF61: 40
A62: 27/07/16 | B62: 100745 | C62: G.P. Teams - entry fees | D62: 2080 | F62: 2000 | T62: 2080 | AF62: 2080
C63: J.Morris-2nd prize for last 2 years Goldstone Cup | D63: -80 | R63: -80 | AF63: -80
A64: 27/07/16 | B64: 100746 | C64: League Fees: | F64: 295 | AF64: 0
C65: Diamond Dames-Mrs Scholes | D65: 40 | I65: 5 | L65: 30 | M65: 5 | AF65: 40
C66: Altrincham A-Hull | D66: 55 | I66: 5 | J66: 5 | L66: 30 | M66: 5 | N66: 10 | AF66: 55
C67: Smash the System | D67: 50 | I67: 5 | J67: 5 | L67: 30 | N67: 10 | AF67: 50
C68: Dash | D68: 55 | I68: 5 | J68: 5 | L68: 30 | M68: 5 | N68: 10 | AF68: 55
C69: Three Reds & a rebel | D69: 35 | I69: 5 | L69: 30 | AF69: 35
C70: Reina de Corazones | D70: 60 | I70: 5 | J70: 5 | L70: 30 | M70: 10 | N70: 10 | AF70: 60
A71: 27/07/16 | B71: 100747 | C71: League Fees: | F71: 262 | AF71: 0
C72: Double Trouble-Berry | D72: 47 | I72: 5 | K72: 12 | L72: 30 | O72: -12 | AD72: 12 | AF72: 47
C73: The Enigmas-Mrs H saunders | D73: 70 | I73: 5 | J73: 5 | L73: 30 | M73: 20 | N73: 10 | AF73: 70
C74: Grasshoppers-A Smalley | D74: 40 | I74: 5 | L74: 30 | M74: 5 | AF74: 40
C75: Isolated Menaces-R Goldenfield | D75: 50 | I75: 5 | J75: 5 | L75: 30 | N75: 10 | AF75: 50
C76: Splinter Group- J Moran | D76: 55 | I76: 5 | J76: 5 | L76: 30 | M76: 5 | N76: 10 | AF76: 55
A77: 27/07/16 | B77: 100748 | C77: As follows: | F77: 15 | AF77: 0
C78: Banking yr-end cash (last yr Hydrangeas, not provided for) | D78: 10 | E78: -10 | AF78: 0
C79: League-The Unconventionals-P Hegarty | D79: 5 | AD79: 5 | AF79: 5
A80: 27/07/16 | B80: Direct | C80: League-Bury Athenaeum-Alan Purdy | F80: 85 | I80: 5 | J80: 5 | K80: 30 | L80: 30 | M80: 5 | N80: 10 | AF80: 85
A81: 28/07/16 | B81: Direct | C81: League-Biddables-M McPhillips | F81: 40 | I81: 5 | L81: 30 | M81: 5 | AF81: 40
A82: 29/07/16 | B82: Direct | C82: League-Jems-P&M Elton | F82: 75 | I82: 5 | L82: 30 | O82: 15 | AD82: 25 | AF82: 75
A83: 2016-03-08 | B83: 100749 | C83: As follows: | F83: 179 | AF83: 0
C84: B Seminar income | D84: 70 | AC84: 70 | AF84: 70
C85: Banking yr-end cash (last yr Conq. Hearts) | D85: 4 | E85: -4 | AF85: 0
C86: League-Rueful Rabbits-J Gilder | D86: 35 | I86: 5 | L86: 30 | AF86: 35
C87: League-Upper Cut-S. Ward | D87: 35 | I87: 5 | L87: 30 | AF87: =SUM(G87:AE87) -> 35
C88: League-Bank-Pearce | D88: 35 | I88: 5 | L88: 30 | AF88: 35
A89: 2016-03-08 | B89: Direct | C89: League-Bare Bones-E Levy | F89: 50 | O89: 50 | AF89: 50
A90: 2016-03-08 | B90: Direct | C90: League-Mouldy Mutton Tour | F90: 35 | I90: 5 | L90: 30 | AF90: 35
A91: 2016-04-08 | B91: Direct | C91: League-Adlan- | F91: 35 | I91: 5 | L91: 30 | O91: -24 | AD91: 24 | AF91: 35
A92: 2016-05-08 | B92: Direct | C92: League-Tempo-Robert Cooke | F92: 60 | I92: 5 | J92: 5 | L92: 30 | M92: 10 | N92: 10 | AF92: 60
A93: 56gh | B93: Direct | C93: League-The North Star-MD Hart | F93: 41 | I93: 5 | K93: 6 | L93: 30 | AF93: 41
A94: 2016-08-08 | B94: Direct | C94: League-Overtrick Lunatics-Georgiou FF | F94: 35 | I94: 5 | L94: 30 | AF94: 35
A95: 2016-08-08 | B95: Direct | C95: League- 4 Bridgemates-M Harris | F95: 35 | I95: 5 | L95: 30 | AF95: 35
A96: 2016-10-08 | B96: Direct | C96: League-Hydrangeas-P Taylor | F96: 60 | I96: 5 | J96: 5 | L96: 30 | M96: 10 | N96: 10 | AF96: 60
A97: 2016-11-08 | B97: Direct | C97: League-Chorlton Challengers-Pardoe | F97: 35 | I97: 5 | L97: 30 | AF97: 35
A98: 15/08/16 | B98: Direct | C98: League-Manchester S-Comrie | F98: 50 | I98: 5 | J98: 5 | L98: 30 | N98: 10 | O98: -6 | AD98: 6 | AF98: 50
A99: 15/08/16 | B99: Direct | C99: League-Astra Zenaca Stars-D Milne | F99: 85 | I99: 5 | J99: 5 | L99: 30 | M99: 10 | N99: 10 | O99: 35 | AD99: -10 | AF99: 85
A100: 18/08/16 | B100: Direct | C100: League-Skaters-K Sandler | F100: 35 | I100: 5 | L100: 30 | AF100: 35
A101: 18/08/16 | B101: Direct | C101: League-Trafford Tigers-J Santo | F101: 40 | I101: 5 | L101: 30 | M101: 5 | AF101: 40
A102: 18/08/16 | B102: Direct | C102: EBU-P2P -July | F102: 323.68 | H102: 323.68 | AF102: 323.68
A103: 26/08/16 | B103: Direct | C103: League-Cheshire Cheeses-V Roberts | F103: 112 | I103: 5 | J103: 5 | K103: 48 | L103: 30 | M103: 20 | N103: 10 | O103: -2 | AD103: -4 | AF103: 112
A104: 30/08/16 | B104: Direct | C104: League-City Aces-H Weinstock | F104: 79 | I104: 5 | J104: 5 | K104: 30 | L104: 30 | M104: 10 | N104: 10 | O104: -11 | AF104: 79
A105: 2016-02-09 | B105: Direct | C105: League-Imps R Us | F105: 75 | I105: 5 | K105: 30 | L105: 30 | M105: 10 | O105: -6 | AD105: 6 | AF105: 75
A106: 2016-05-09 | B106: Direct | C106: League-Team Mayhem-N Thomas | F106: 62 | I106: 5 | J106: 5 | K106: 12 | L106: 30 | N106: 10 | AF106: 62
A107: 2016-06-09 | B107: Direct | C107: League - Agememnon | F107: 55 | I107: 5 | J107: 5 | L107: 30 | M107: 5 | N107: 10 | O107: -5 | AD107: 5 | AF107: 55
A108: 15/09/2016 | B108: Direct | C108: EBU-P2p August | F108: 145.6 | H108: 145.6 | AF108: 145.6
A109: 22/09/2016 | B109: Direct | C109: League-City Aces-H Weinstock | F109: 11 | O109: 11 | AF109: 11
A110: 17/10/2016 | B110: Direct | C110: League-Mouldy Mutton Tour | F110: 15 | J110: 5 | N110: 10 | AF110: 15
A111: 17/10/2016 | B111: Direct | C111: League-Trafford Tigers-J Santo | F111: 10 | M111: 10 | AF111: 10
A112: 18/10/2016 | B112: Direct | C112: League-Rejuvenated-J.Fitzgerald | F112: 74 | I112: 5 | J112: 5 | K112: 18 | L112: 30 | M112: 15 | N112: 10 | O112: 2 | AD112: -11 | AF112: 74
A113: 20/10/2016 | B113: Direct | C113: EBU-P2P September | F113: 320.81 | H113: 320.81 | AF113: 320.81
A114: 27/10/2016 | B114: Direct | C114: EBU-Direct Members | F114: 5 | G114: 5 | AF114: 5
A115: 28/10/2016 | B115: 100750 | C115: League-Monton Misfits | D115: 88 | I115: 5 | J115: 5 | K115: 18 | L115: 30 | M115: 20 | N115: 10 | AF115: 88
C116: League-Altrincham Z | D116: 35 | I116: 5 | L116: 30 | AF116: 35
C117: League-Proteus-JC Roberts | D117: 60 | I117: 5 | J117: 5 | L117: 30 | M117: 10 | N117: 10 | AF117: 60
C118: League-Curry Eaters-P.Hackett | D118: 56 | F118: 239 | I118: 5 | J118: 5 | K118: 6 | L118: 30 | M118: 10 | N118: 10 | O118: -10 | AF118: 56
A119: 28/10/2016 | B119: 100801 | C119: League-Ashton Aces-G. Bickley | D119: 68 | I119: 5 | J119: 5 | K119: 12 | L119: 30 | N119: 10 | O119: 6 | AF119: =SUM(G119:AE119) -> 68
C120: League-The Bridgers-Ms Kirwan | D120: 40 | I120: 5 | L120: 30 | M120: 15 | O120: -10 | AF120: 40
C121: League-Smash the System | D121: 5 | M121: 5 | AF121: 5
C122: League-Pak Choice | D122: 35 | I122: 5 | L122: 30 | AF122: 35
C123: League-Conquering Hearts | D123: 60 | F123: 208 | I123: 5 | J123: 5 | L123: 30 | M123: 10 | N123: 10 | AF123: 60
A124: 2016-02-11 | C124: League-School of Slamwich | F124: 17.5 | I124: 2.5 | L124: 15 | AF124: 17.5
A125: 2016-07-11 | B125: 10175 | C125: Autumn Intermediate Pairs-chq. Receipts | F125: 256 | X125: 256 | AF125: 256
A126: 23/11/2016 | B126: 10175 | C126: Autumn Intermediate Pairs-chq. Receipts | F126: 16 | X126: 16 | AF126: 16
A127: 22/12/2016 | B127: Direct | C127: EBU-P2P November | F127: 390.18 | H127: 390.18 | AF127: 390.18
A128: 2017-05-01 | B128: 100802 | C128: Ann-Ben Franks | F128: 277.5 | AF128: 0
C129: Entry Fees | D129: 612 | V129: 612 | AF129: 612
C130: Duplimated boards and hand records | D130: -20 | V130: -20 | AF130: -20
C131: Directors Fee | D131: -80 | V131: -80 | AF131: -80
C132: Refreshments | D132: -34.5 | V132: -34.5 | AF132: -34.5
C133: Prizes | D133: -200 | V133: -200 | AF133: -200
AF134: 0
A135: 2017-06-01 | B135: 100851 | C135: League-Bombay Sapphires | F135: 76 | I135: 5 | L135: 30 | M135: 5 | O135: 1 | AD135: 35 | AF135: 76
A136: 2017-09-01 | B136: 100803 | C136: Congress Income | F136: 6426 | U136: 6426 | AF136: 6426
A137: 2017-09-01 | B137: 100804 | C137: Congress Income | F137: 425 | U137: 425 | AF137: 425
A138: 2017-09-01 | B138: 100852 | C138: Congress Income | F138: 90 | U138: 90 | AF138: 90
A139: 2017-09-01 | B139: 100853 | C139: cancelled
A140: 2017-09-01 | B140: 100854 | C140: Congress Income | F140: 65 | U140: 65 | AF140: =SUM(G140:AE140) -> 65
A141: 10/01/201 | B141: Direct | C141: Congress-receipts for tea and coffee | F141: 252.5 | U141: 252.5 | AF141: 252.5
A142: 2017-12-01 | B142: Direct | C142: EBU-direct members | F142: 5 | G142: 5 | AF142: 5
A143: 17/01/2017 | B143: Direct | C143: League-Tricksters-K Higgins | F143: 10 | M143: 10 | AF143: 10
A144: 19/01/2017 | B144: Direct | C144: EBU-P2P-Dec 2016 | F144: 90.72 | H144: 90.72 | AF144: 90.72
A145: 31/01/2017 | B145: 100805 | C145: Ann Thornton- Conngress Income | F145: 32 | U145: 32 | AF145: 32
A146: 19/01/2017 | B146: 100855 | C146: Congress-Refund on teas and coffees | F146: 22.8 | U146: 22.8 | AF146: 22.8
A147: 19/01/2017 | B147: 100856 | C147: Gazette Cup Income-Bramhall | F147: 80 | Q147: 80 | AF147: 80
A148: 2017-06-02 | B148: 100806 | C148: Gazette Cup Income | D148: 685 | F148: 665 | Q148: 685 | AF148: 685
C149: less: Caretaker Tip | D149: -20 | Q149: -20 | AF149: -20
A150: 16/02/2017 | B150: Direct | C150: EBU-P2P-Jan 2017 | F150: 293.23 | H150: 293.23 | AF150: 293.23
A151: 21/02/2017 | B151: Direct | C151: League-Chorlton Challengers-Pardoe | F151: 5 | M151: 5 | AF151: 5
A152: 2017-02-27 | B152: 10175 | C152: B.Lewis-Cantor Cup-chq receipts | F152: 184 | Y152: 184 | AF152: 184
A153: 2017-06-03 | B153: 10720 | C153: Rhona-GP Swiss Pairs | F153: 1872 | AF153: 0
C154: Entry Fees | D154: 1970 | S154: 1970 | AF154: 1970
C155: Prizes (wine) | D155: -18 | S155: -18 | AF155: -18
C156: Refreshments | D156: -60 | S156: -60 | AF156: -60
C157: Printing | D157: -20 | S157: -20 | AF157: -20
A158: 16/03/2017 | B158: Direct | C158: League-Biddables-M.McPhilips | F158: 5 | M158: 5 | AF158: 5
A159: 17/03/2017 | B159: 100757 | C159: GP-Swiss Pairs-late receipt | F159: 40 | S159: 40 | AF159: 40
A160: 23/03/2017 | B160: Direct | C160: EBU-P2P-February 2017 | F160: 119.98 | H160: 119.98 | AF160: 119.98
A161: 31/03/2017 | B161: 100857 | C161: League-Isolated Menaces | F161: 5 | M161: 5 | AF161: 5
A162: 31/03/2017 | B162: reconciliation | C162: League/Cup analysis correction re St Titus | F162: 0 | I162: 5 | J162: 5 | L162: 30 | M162: 10 | O162: -50 | AF162: 0
C163: League-prior yr (Manchester Cardinals) w/off | O163: 5 | AD163: -5 | AF163: 0
AF164: 0
AF165: 0
AF166: 0
AF167: 0
AF168: 0
AF169: 0
AF170: 0
AF171: 0
A172: Total Income | E172: =SUM(E30:E171) -> -14 | F172: =SUM(F30:F171) -> 19372.88 | G172: =SUM(G30:G171) -> 235 | H172: 2554.58 | I172: 327.5 | J172: 175 | K172: 252 | L172: 1965 | M172: 335 | N172: 350 | O172: 47 | P172: 0 | Q172: 745 | R172: -80 | S172: 1912 | T172: 2080 | U172: 7313.3 | V172: 277.5 | W172: 240 | X172: 272 | Y172: 184 | Z172: 0 | AA172: 0 | AB172: 0 | AC172: 70 | AD172: =SUM(AD7:AD171) -> 0 | AE172: 0 | AF172: 19358.88
A174: Total Income//Cash | F174: =F172+E172 -> 19358.88
A176: Expenditure | E176: =' Expenses'!D194 -> 0 | F176: =' Expenses'!F194 -> 20141.62 | G176: 0 | H176: =' Expenses'!G194 -> 0 | I176: =' Expenses'!H194 -> -63.36 | J176: =' Expenses'!I194 -> 0 | K176: =' Expenses'!J194 -> 0 | L176: =' Expenses'!K194 -> 0 | M176: =' Expenses'!L194 -> -25 | N176: =' Expenses'!M194 -> 633 | O176: =' Expenses'!N194 -> 15 | P176: =' Expenses'!O194 -> 0 | Q176: =' Expenses'!P194 -> 755.11 | R176: =' Expenses'!Q194 -> 0 | S176: =' Expenses'!R194 -> 1394.86 | T176: =' Expenses'!S194 -> 1519.88 | U176: =' Expenses'!T194 -> 7038.01 | V176: =' Expenses'!U194 -> 183 | W176: =' Expenses'!V194 -> 175.78 | X176: =' Expenses'!W194 -> 131.9 | Y176: =' Expenses'!X194 -> 365.1 | Z176: =' Expenses'!Y194 -> 0 | AA176: =' Expenses'!Z194 -> 0 | AB176: =' Expenses'!AK194 -> 119.1 | AC176: =' Expenses'!AQ194 -> 280 | AD176: =' Expenses'!AW194 -> 2104.25 | AE176: =' Expenses'!AX194 -> -260 | AF176: =SUM(G176:AE176) -> 14366.63
A178: Total Expenditure/Cash | F178: =F176+E176 -> 20141.62
A180: Totals( Income less Expenditure + Opening Bals) | F180: =F174-F178+F8+E8 -> 2991.49 | G180: =G172-G176 -> 235 | H180: 2554.58 | I180: 390.86 | J180: 175 | K180: 252 | L180: =L172-L176 -> 1965 | M180: 360 | N180: =N172-N176 -> -283 | O180: =O172-O176 -> 32 | P180: 0 | Q180: -10.11 | R180: -80 | S180: 517.14 | T180: 560.12 | U180: 275.29 | V180: 94.5 | W180: 64.22 | X180: 140.1 | Y180: -181.1 | Z180: 0 | AA180: 0 | AB180: -119.1 | AC180: -210 | AD180: -2104.25 | AE180: 260
A182: Cash Held, not yet banked | F182: =E8+E172 -> 0
A184: Sundry Creditors-Unpresented Cheques | F184: =' Expenses'!F201 -> 2560.23
A186: Transfer from Skipton BS | C186: 31/05/2016…..paying in slip 100744 | F186: 3000
A188: Bank Balance | F188: =F180-F182+F184+F186+F185 -> 8551.72
E189: Agreed to bank sheet 214

Sheet Reserve Accounts
A1: Skipton Building Society (MCBA)
C3: 2016-17 | D3: 2015 - 2016 | E3: 2014 - 2015 | F3: 2013 - 2014 | G3: 2012 - 2013 | I3: 2011-2012 | K3: 2010 - 2011 | M3: 2009 - 2010
A5: Balance B/F | C5: =D9 -> 9793.7 | D5: =E9 -> 11718.7 | E5: =F9 -> 11718.7 | F5: =G9 -> 11644.18 | G5: =I9 -> 11586.88 | I5: =K9 -> 11454.29 | K5: =M9 -> 11239.54 | M5: 11000
A6: Transfer to NatWest | C6: -3000 | D6: -2000
A7: Interest | C7: 80.28 | D7: 75 | F7: 74.52 | G7: 57.3 | I7: 132.59 | K7: =11454.29-M9 -> 214.75 | M7: 239.54
A9: Total | C9: =SUM(C5:C8) -> 6873.98 | D9: =SUM(D5:D8) -> 9793.7 | E9: =SUM(E5:E8) -> 11718.7 | F9: =F5+F7 -> 11718.7 | G9: =SUM(G5:G8) -> 11644.18 | I9: =I5+I7 -> 11586.88 | K9: =K5+K7 -> 11454.29 | M9: =SUM(M5:M8) -> 11239.54

Sheet Expenses
A1: Expenditure | AL1: Travel
AL2: Telephone | AM2: Bridge | AV2: Prepaid
A3: Date | B3: Cheque No | C3: Details | Q3: Merville | R3: Pairs | S3: Teams | V3: Summer | W3: Autumn | Z3: Players Progress | AA3: EBU | AB3: EBU | AC3: MCBA | AD3: Retirement | AE3: EBU | AF3: EBU | AG3: Presidents | AH3: Derbyshire | AI3: NBL | AJ3: All Counties | AK3: EBU | AL3: Printing | AM3: Stationery & | AN3: Handbook | AO3: AGM | AP3: Youth | AQ3: Seminars | AR3: EBU | AS3: Engraving | AT3: Camrose | AU3: Northern | AV3: Room | AW3: Outstanding | AX3: Prior Year | AY3: Totals
D4: Cash | F4: Bank | G4: EBU | H4: EBU P2P | I4: EBU P2P | J4: EBU | K4: EBU | L4: League & Cup | M4: Higson | N4: Over | O4: EBU | P4: Gazette | Q4: Goldstone | R4: Green | S4: Green | T4: Manchester | U4: Ben | V4: Intermediate | W4: Intermediate | X4: Cantor Cup | Y4: Newcomers | Z4: & Kevin Comrie | AA4: Tollemache | AB4: Corwen | AC4: Website | AD4: Gifts/ | AE4: Pachabo | AF4: Garden | AG4: Cup | AH4: Friendly | AJ4: Super | AK4: Delegate | AL4: Postage | AM4: Equipment | AN4: Expenses | AO4: Expenses | AP4: Budget | AR4: Masterpoints | AU4: Counties | AV4: Bookings | AX4: Corrections
E5: Sub | G5: P2P (clubs) | H5: League | I5: Cup | J5: Affiliates | K5: League | L5: >4 players | M5: Cup & Plate | N5: Payments | O5: BFA | P5: Trophy | Q5: Trophy | R5: Points | S5: Points | T5: Congress | U5: Franks | V5: Pairs | W5: Pairs | Y5: League | Z5: Cups | AC5: Fees | AD5: Presentations | AE5: Cup | AF5: Cities | AJ5: Final | AK5: Expenses | AL5: Stationery | AM5: Insurance | AU5: Working | AV5: Events etc | AW5: 2015-2016
E6: Addition | AL6: Bank Fees | AU6: Group | AV6: Next Year
A7: Balances B/f: | C7: Unpresented Cheques | AW7: -2490.65
C8: Estimated EBU license fee for League 2015/16 | AW8: -489.6
C9: less: Prepayments | AW9: 876
A10: Prepaid Room Bookings for 2016-17 | AY10: =SUM(G10:AX10) -> 0
C11: Summer Int. Pairs - Jun 2016 | E11: 92 | V11: 92 | AW11: -92 | AY11: 0
C12: GP Pairs - Mar 2017 | E12: 50 | R12: 50 | AW12: -50 | AY12: 0
C13: GP Teams - Jul 2016 £184 and deposit GP Teams Jul 2017 £50 | E13: =184+50 -> 234 | S13: 184 | AV13: 50 | AW13: -234 | AY13: 0
C14: Manchester Congress Deposit - Jan 2017 | E14: 500 | T14: 500 | AW14: -500 | AY14: 0
A16: Prior Year Unpresented Cheques in Yellow:
B17: 1320 | C17: R.Lighton-website expenses | F17: 71.84 | AW17: 71.84 | AY17: =SUM(G17:AX17) -> 71.84
B18: 1321 | C18: cheque destroyed | AY18: 0
B19: 1322 | C19: EBU-Ben Franks P2P | F19: 14.76 | AW19: 14.76 | AY19: 14.76
B20: 1323 | C20: K.Nelson - Cup Prizes | F20: 250 | AW20: 250 | AY20: 250
B21: 1324 | C21: M.Byrne-teaching B team seminar | F21: 250 | AQ21: 250 | AY21: 250
B22: 1325 | C22: CHBC-room hire B team seminar | F22: 30 | AQ22: 30 | AY22: 30
B23: 1326 | C23: J.Lewis-Plate final-directing | F23: 80 | AW23: 80 | AY23: 80
B24: 1327 | C24: J.Smith - Cup directing | F24: 80 | AW24: 80 | AY24: 80
B25: 1328 | C25: ABC-Cup & Plate Finals:Hand records£16/Duplimating Brds £30 | F25: 46 | AW25: 46 | AY25: 46
B26: 1329 | C26: MBC-Cup & Plate Finals: 18 tables@£12 | F26: 216 | AW26: 216 | AY26: 216
B27: 1330 | C27: S.Davies: NBL-4 teams @ £75 | F27: 300 | AW27: 300 | AY27: 300
B28: 1331 | C28: Expert Player of Year-Michael Newman | F28: 50 | AW28: 50 | AY28: 50
B29: 1332 | C29: Joint Intermediate POY- Graham Campbell | F29: 25 | AW29: 25 | AY29: 25
B30: 1333 | C30: Joint Intermediate POY - George Leigh | F30: 25 | AW30: 25 | AY30: 25
B31: 1334 | C31: I.Davies-engraving 3 trophies for POY | F31: 19.5 | AW31: 19.5 | AY31: 19.5
B32: 1335 | C32: H.Tattersall-repayt of cash provided for Gazette Cup | F32: 9.17 | AW32: 9.17 | AY32: 9.17
B33: 1336 | C33: EBU Inv 574886-Congress License Fees | F33: 250.92 | AW33: 250.92 | AY33: 250.92
B34: 1337 | C34: EBU inv 578684-License Fees Gazette=£28.44/League Div 7 last year=£61.20 | F34: 89.64 | AW34: 89.64 | AY34: 89.64
B35: 1338 | C35: EBU inv 577964-Insurance for 2016-17 | F35: 73.2 | AM35: 73.2 | AY35: 73.2
B36: 1339 | C36: EBU inv.580623-License Fees GP Pairs on 5/03/16 | F36: 370.14 | AW36: 370.14 | AY36: 370.14
B37: 1340 | C37: EBU inv.580977 - License Fees-Garden Cities final | F37: 260 | AW37: 260 | AY37: 260
B38: 1341 | C38: EBU inv.579890 - Corwen Trophy entry fees-chq cancelled | AY38: 0
B39: 1342 | C39: League cup engraving | F39: 50 | AW39: 50 | AY39: 50
B40: 1343 | C40: Treasurers Expenses-2015/16-postage | F40: 22.68 | AW40: 22.68 | AY40: 22.68
B41: 1344 | C41: Garden Cities final - ERROR-chq 1344 shown below | F41: 260 | AW41: 260 | AY41: 260
C42: PRIOR YEAR CORRECTION-re error on above line | F42: -260 | AX42: -260 | AY42: -260
A43: 2016-08-06 | B43: 1344 | C43: I. Davies-AGM expenses | F43: 57.8 | AO43: 57.8 | AY43: 57.8
A44: 2016-12-06 | B44: 1345 | C44: S.Triggs-Handbook Expenses | F44: 249 | AN44: 249 | AY44: 249
A45: 2016-12-06 | B45: 1346 | C45: S.Triggs-posting handbooks | F45: 12.98 | AN45: 12.98 | AY45: 12.98
A46: 22/06/2016 | B46: 1347 | C46: M & CBA -Presidents Cup | F46: 220 | AG46: 220 | AY46: 220
A47: 22/06/2016 | B47: 1348 | C47: Ian Mitchell-Inter-County League Finals | F47: 180 | AJ47: 180 | AY47: 180
A48: 22/06/2016 | B48: 1349 | C48: EBU-Pachabo entry | F48: 212 | AE48: 212 | AY48: 212
A49: 22/06/2016 | B49: 1350 | C49: EBU-Corwen Trophy | F49: 200 | AB49: 200 | AY49: 200
A50: 28/06/2016 | B50: 1351 | C50: Barbara Lewis re Summer Intermediate Pairs (£83.78) | F50: 83.78 | AY50: 0
C51: Cash income | E51: -176 | V51: -176 | AY51: -176
C52: Director-Joan Lewis | E52: 45 | V52: 45 | AY52: 45
C53: ABC-equipment | E53: 20 | V53: 20 | AY53: 20
C54: Gratuities | E54: 11 | V54: 11 | AY54: 11
C55: Printing | E55: 2 | V55: 2 | AY55: 2
C56: Postage | E56: 3.3 | V56: 3.3 | AY56: 3.3
C57: Duplimated boards and hand records | E57: 10 | V57: 10 | AY57: 10
C58: Refreshments | E58: 15.5 | V58: 15.5 | AY58: 15.5
C59: Sweets | E59: 13 | V59: 13 | AY59: 13
C60: Prizes-1st=£50, 2nd = £30, 3rd= £20 | E60: 100 | V60: 100 | AY60: 100
C61: Prizes-wine and chocolate | E61: 39.98 | V61: 39.98 | AY61: 39.98
A62: 19/07/2016 | B62: 1352 | C62: D. Stevenson-GP Swiss Teams-directing | F62: 181 | S62: 181 | AY62: 181
A63: 19/07/2016 | B63: 1353 | C63: J. Lewis-GP Swiss Teams: | F63: 80 | AY63: 0
C64: Directing | E64: 55 | S64: 55 | AY64: 55
C65: caretaker tip | E65: 10 | S65: 10 | AY65: 10
C66: printing | E66: 15 | S66: 15 | AY66: 15
A67: 19/07/2016 | B67: 1354 | C67: ABC-GP Swiss Teams-Equipment & duplimating | F67: 138 | S67: 138 | AY67: =SUM(G67:AX67) -> 138
A68: 19/07/2016 | B68: 1355 | C68: R. Goldenfield-GP Swiss Teams-£550 | F68: 550 | AY68: 0
C69: Prizes | E69: 488 | S69: 488 | AY69: 488
C70: Refreshments | E70: 42 | S70: 42 | AY70: 42
C71: Printing & Postage | E71: 20 | S71: 20 | AY71: 20
A72: 26/08/2016 | B72: 1356 | C72: S. Triggs - Handbook printing | F72: 236.55 | AN72: 236.55 | AY72: 236.55
A73: 26/08/2016 | B73: 1357 | C73: I.Davies - Tollemache accom. deposits@£25 each | F73: 175 | AA73: 175 | AY73: 175
A74: 2016-12-10 | B74: 1358 | C74: I.Davies-Congress brochures | F74: 60 | T74: 60 | AY74: 60
A75: 2016-12-10 | B75: 1359 | C75: I.Davies-Accom. For Tollemache NPC (non-playing captain) | F75: 105.9 | AA75: 105.9 | AY75: 105.9
A76: 2016-12-10 | B76: 1360 | C76: EBU-Tollemache entry fees | F76: 416 | AA76: 416 | AY76: 416
A77: 2016-12-10 | B77: 1361 | C77: Rhona Goldfield-Tollemache Allowances balanc 8@£25 | F77: 200 | AA77: 200 | AY77: 200
A78: 20/10/2016 | B78: 1362 | C78: I.Davies-2 further Tollemache allowances 2@£25 | F78: 50 | AA78: 50 | AY78: 50
A79: 20/10/2016 | B79: 1363 | C79: St Peters PCC-Autumn Intermediate Pairs-06/11/2016-room hire | F79: 92 | W79: 92 | AY79: 92
A80: 20/10/2016 | B80: 1364 | C80: St Paeters PCC-Gazette Cup 05/02/2017-room hire | F80: 138 | P80: 138 | AY80: 138
A81: 20/10/2016 | B81: 1365 | C81: EBU P2P for Swiss Teams-July 2016 | F81: 386.88 | S81: 386.88 | AY81: 386.88
A82: 20/10/2016 | B82: 1366 | C82: EBU League P2P for 2016/2016 | F82: 426.24 | AW82: 426.24 | AY82: 426.24
C83: W/Off over-provision for P2P for League 2015/16 | H83: -63.36 | AW83: 63.36 | AY83: 0
A84: 25/11/2016 | B84: 1367 | C84: V &A Hotel -Manchester Congress 2017 | F84: 2812 | T84: 2812 | AY84: 2812
A85: 25/11/2016 | B85: 1368 | C85: St Peters Hall-Intermediate Pairs 11/06/2017-Room Hire | F85: 92 | AV85: 92 | AY85: 92
A86: 2016-09-12 | B86: 1369 | C86: EBU Inv 590013-Ben Franks P2P | F86: 18 | U86: 18 | AY86: 18
A87: 2016-11-12 | B87: 1370 | C87: (K.Comrie)-P.A. system for tournaments | F87: 149 | AM87: 149 | AY87: 149
A88: 2016-11-12 | B88: 1371 | C88: A.Wiseberg-League-refund of overpayment | F88: 15 | N88: 15 | AY88: 15
A89: 2016-11-12 | B89: 1372 | C89: MBC-Ben Franks Room Hire | F89: 156 | U89: 156 | AY89: 156
A90: 2016-11-12 | B90: 1373 | C90: R.Goldenfield-Tollemache-petrol for NPC | F90: 40 | AA90: 40 | AY90: 40
A91: 2016-11-12 | B91: 1374 | C91: S.Triggs-Handbook Postage | F91: 11.03 | AN91: 11.03 | AY91: 11.03
A92: 2016-11-12 | B92: 1375 | C92: St Peters PCCInv 1612-GP Swiss Pairs-Room Hire | F92: 134 | R92: 134 | AY92: 134
A93: 2016-11-12 | B93: 1376 | C93: St Peters PCCInv 1613-GPTeams 2017/18-Room Hire | F93: 134 | AV93: 134 | AY93: 134
A94: 2016-11-12 | B94: 1377 | C94: M.Newman -Printing | E94: 36 | F94: 45 | AL94: 36 | AY94: 36
C95: M.Newman-Ben Franks trophy engraving | E95: 9 | U95: 9 | AY95: 9
A96: 2016-11-12 | B96: 1378 | C96: M.Newman-EBU shareholders meeting expenses | F96: 119.1 | AK96: 119.1 | AY96: 119.1
A97: 2016-12-12 | B97: 1379 | C97: B.Lewis - Congress - Postage | E97: 21.8 | F97: 105.8 | T97: 21.8 | AY97: 21.8
C98: B.Lewis - Congress - Engraving | E98: 84 | T98: 84 | AY98: 84
A99: 22/12/2016 | B99: 1380 | C99: I.Davies-Flowers for Eve | F99: 39.5 | AD99: 39.5 | AY99: =SUM(G99:AX99) -> 39.5
A100: 22/12/2016 | B100: 1381 | C100: I.Davies-Tollemache accommodation for final | F100: 250 | AA100: 250 | AY100: 250
A101: 2017-01-01 | B101: 1382 | C101: B.Lewis - Autumn Intermediate Pairs (net) | F101: 39.9 | AY101: 0
C102: Cash income | E102: -216 | W102: -216 | AY102: -216
C103: Director, J.Fitzgerald-wine/chocs | E103: 10.5 | W103: 10.5 | AY103: 10.5
C104: Scorer,Margaret Harris-wine/chocs | E104: 10.5 | W104: 10.5 | AY104: 10.5
C105: ABC-Hire equipment | E105: 20 | W105: 20 | AY105: 20
C106: Caretaker gratuity | E106: 10 | W106: 10 | AY106: 10
C107: Duplimated boards and hand records | E107: 12 | W107: 12 | AY107: 12
C108: Refreshments | E108: 39.5 | W108: 39.5 | AY108: 39.5
C109: Stationery | E109: 2 | W109: 2 | AY109: 2
C110: Stamps | E110: 4.4 | W110: 4.4 | AY110: 4.4
C111: Prizes | E111: 147 | W111: 147 | AY111: 147
A112: 2017-02-01 | B112: 1383 | C112: A.Thornton-Present for Joan | E112: 21.5 | F112: 26 | AD112: 21.5 | AY112: 21.5
C113: A.Thornton-Printing | E113: 4.5 | AL113: 4.5 | AY113: 4.5
A114: 2017-08-01 | B114: 1384 | C114: S.Amos-Congress-Directing | F114: 590.75 | T114: 590.75 | AY114: 590.75
A115: 2017-08-01 | B115: 1385 | C115: R.Dixon-Congress-Directing | F115: 347.05 | T115: 347.05 | AY115: 347.05
A116: 2017-08-01 | B116: 1386 | C116: J.Lewis-Congress-Directing | F116: 50 | T116: 50 | AY116: 50
A117: 2017-08-01 | B117: 1387 | C117: G.Wynn-Congress-Directing | F117: 50 | T117: 50 | AY117: 50
A118: 2017-08-01 | B118: 1388 | C118: chq cancelled
A119: 2017-08-01 | B119: 1389 | C119: Gordon Bickley-Congress-Directing | F119: 95.4 | T119: 95.4 | AY119: =SUM(G119:AX119) -> 95.4
A120: 2017-08-01 | B120: 1390 | C120: ABC-Congress-Eqipment | E120: 50 | F120: 65 | T120: 50 | AY120: =SUM(G120:AX120) -> 50
C121: ABC-Congress-Boards | E121: 15 | T121: 15 | AY121: =SUM(G121:AX121) -> 15
A122: 2017-08-01 | B122: 1391 | C122: Larkhill-Congress-Eqipment | F122: 25 | T122: 25 | AY122: =SUM(G122:AX122) -> 25
A123: 2017-08-01 | B123: 1392 | C123: B.Lewis -Congress
C124: Prizes | E124: 1520 | F124: 1455.25 | T124: 1520 | AY124: =SUM(G124:AX124) -> 1520
C125: Prize donated by Jeff Morris | E125: -100 | T125: -100 | AY125: =SUM(G125:AX125) -> -100
C126: Stationery | E126: 35.25 | T126: 35.25 | AY126: 35.25
A127: 2017-08-01 | B127: 1393 | C127: I.Davies-tea and coffee | F127: 379.8 | T127: 379.8 | AY127: =SUM(G127:AX127) -> 379.8
A128: 2017-08-01 | B128: 1394 | C128: chq. Cancelled
A129: 2017-08-01 | B129: 1395 | C129: S.Triggs-Congress-Prizes | F129: 91 | T129: 91 | AY129: =SUM(G129:AX129) -> 91
A130: 2017-08-01 | B130: 1396 | C130: CHBC-Congress-Equipment | F130: 40 | T130: 40 | AY130: 40
A131: 2017-09-01 | B131: 1397 | C131: H.Tattersall-Treasurers Expenses-stationery and stamps | F131: 38.2 | AL131: 38.2 | AY131: 38.2
A132: 18/01/2017 | B132: 1398 | C132: Congress-replacing cash provided by Treasurer on day (income overstated) | F132: 42 | T132: 42 | AY132: 42
A133: 18/01/2017 | B133: 1399 | C133: Congress-staff tip | F133: 5 | T133: 5 | AY133: 5
A134: 18/01/2017 | B134: 1400 | C134: Congress printing | F134: 20 | T134: 20 | AY134: 20
A135: 18/01/2017 | B135: 1401 | C135: I.Davies-Tollemache accommodation for final | F135: 69.8 | AA135: 69.8 | AY135: 69.8
A136: 18/01/2017 | B136: 1402 | C136: M.Byrne-Tollemache expenses | F136: 50 | AA136: 50 | AY136: 50
A137: 18/01/2017 | B137: 1403 | C137: M.Newman-Tollemache expenses | F137: 50 | AA137: 50 | AY137: 50
A138: 18/01/2017 | B138: 1404 | C138: C.Draper-Tollemache expenses | F138: 50 | AA138: 50 | AY138: 50
A139: 18/01/2017 | B139: 1405 | C139: A.Woodcock-Tollemache expenses | F139: 50 | AA139: 50 | AY139: 50
A140: 2017-04-02 | B140: 1406 | C140: A.Thornton-Gazette Cup-catering | E140: 199 | F140: 295 | P140: 199 | AY140: 199
C141: and prizes | E141: 96 | P141: 96 | AY141: 96
A142: 2017-04-02 | B142: 1407 | C142: B.Lewis-Gazette Cup-catering | F142: 170.11 | P142: 170.11 | AY142: 170.11
A143: 2017-04-02 | B143: 1408 | C143: J.Lewis-Gazette-Directing | F143: 80 | P143: 80 | AY143: =SUM(G143:AX143) -> 80
A144: 2017-04-02 | B144: 1409 | C144: I.Davies-Cantor Cup-Trophies for 3 years | F144: 35.7 | X144: 35.7 | AY144: 35.7
A145: 2017-04-02 | B145: 1410 | C145: V &A Hotel -Manchester Congress 2018 -Room Hire booking deposit | F145: 500 | AV145: 500 | AY145: 500
A146: 2017-10-02 | B146: 1411 | C146: R.Lighton-website expenses | F146: 88.62 | AC146: 88.62 | AY146: 88.62
A147: 2017-10-02 | B147: 1412 | C147: ABC-Gazette-Equipment Hire | F147: 45 | P147: 45 | AY147: 45
A148: 27/02/2017 | B148: 1413 | C148: B.Lewis-Cantor Cup | F148: 329.4 | AY148: 0
C149: Cash Receipts | E149: -188 | X149: -188 | AY149: -188
C150: MBC-room hire | E150: 150 | X150: 150 | AY150: 150
C151: J.Lewis-Directing | E151: 45 | X151: 45 | AY151: 45
C152: Duplimated boards and hand records | E152: 15 | X152: 15 | AY152: 15
C153: Printing | E153: 2 | X153: 2 | AY153: 2
C154: Postage | E154: 4.4 | X154: 4.4 | AY154: 4.4
C155: Refreshments | E155: 88 | X155: 88 | AY155: 88
C156: Prizes | E156: 213 | X156: 213 | AY156: 213
D157: Total | E157: =SUM(E149:E156) -> 329.4 | AY157: 0
A158: 27/02/2017 | B158: 1414 | C158: Swiss GP Pairs-D.Stevenson-directing | F158: 181 | R158: 181 | AY158: 181
A159: 27/02/2017 | B159: 1415 | C159: GP Pairs-J.Lewis | F159: 88 | AY159: 0
C160: Directing | E160: 60 | R160: 60 | AY160: 60
C161: Hands | E161: 18 | R161: 18 | AY161: 18
C162: Caretaker tip | E162: 10 | R162: 10 | AY162: 10
A163: 27/02/2017 | B163: 1416 | C163: GP Pairs-Rhona G.-Prizes | F163: 440 | R163: 440 | AY163: 440
A164: 27/02/2017 | B164: 1417 | C164: GP Pairs-ABC-Equipment hire & duplimating | F164: 128 | R164: 128 | AY164: 128
A165: 27/02/2017 | B165: 1418 | C165: M & CBA -Presidents Cup | F165: 255 | AV165: 255 | AY165: 255
A166: 19/03/2017 | B166: 1419 | C166: EBU-Pachabo entry | F166: 219 | AV166: 219 | AY166: 219
A167: 19/03/2017 | B167: 1420 | C167: EBU-Garden Cities | F167: 268 | AV167: 268 | AY167: 268
A168: 19/03/2017 | B168: 1421 | C168: EBU-Corwen Trophy | F168: 416 | AV168: 416 | AY168: 416
A169: 22/03/2017 | B169: 1422 | C169: Stuart Davies-Northern Bridge League | F169: 240 | AV169: 240 | AY169: 240
A170: 24/03/2017 | B170: 1423 | C170: J.Lewis - Equipment (Boards £33.37/cards in Boxes £23.86) | F170: 57.23 | AM170: 57.23 | AY170: 57.23
A171: 31/03/2017 | B171: 1424 | C171: K.Nelson - Cup Prizes | F171: 250 | M171: 250 | AY171: 250
B173: CREDITORS:
B174: PAYMENTS AFTER Y/E (relating to 2016/17)
A175: 27/04/2017 | B175: 1426 | C175: MBC-Cup & Plate Finals: Room Hire | F175: 228 | M175: 228 | AY175: 228
A176: 27/04/2017 | B176: 1429 | C176: J.Lewis - Higson Cup/Plate Finals: | F176: 95 | AY176: 0
C177: Directing | E177: 80 | M177: 80 | AY177: 80
C178: Hand Records | E178: 15 | M178: 15 | AY178: 15
C179: ABC-paid for boards | E179: 25 | M179: 25 | AY179: 25
C180: less:receipts for extra team players: | AY180: 0
C181: St Titus | E181: -10 | L181: -10 | AY181: -10
C182: Mouldy Mutten | E182: -10 | L182: -10 | AY182: -10
C183: Four Dummies | E183: -5 | L183: -5 | AY183: -5
A184: 2017-05-05 | B184: 1431 | C184: J.Smith - Cup/Plate Finals - Directing | F184: 35 | M184: 35 | AY184: 35
A185: 2017-06-05 | B185: 1432 | C185: J.Holland - Joint POY (player of Year 2016/17) | F185: 25 | AD185: 25 | AY185: 25
A186: 2017-06-05 | B186: 1433 | C186: A.Mould - Joint POY (player of Year 2016/17) | F186: 25 | AD186: 25 | AY186: 25
A187: 2017-06-05 | B187: 1434 | C187: A.Wiseberg -Intermediate POY (player of Year 2016/17) | F187: 50 | AD187: 50 | AY187: 50
A188: 2017-09-05 | B188: 1435 | C188: EBU-Inv 12579-Congress 2017 Masterpoints | F188: 303.96 | T188: 303.96 | AY188: 303.96
A189: 2017-09-05 | B189: 1436 | C189: EBU-Inv 12748-Gazette Cup masterpoints | F189: 27 | P189: 27 | AY189: 27
A190: 2017-09-05 | B190: 1437 | C190: EBU-Inv. 1437 - G.P.Swiss Pairs on 04/03/2017 | F190: 373.86 | R190: 373.86 | AY190: 373.86
B191: 1438 | C191: cancelled
A192: 16/05/2017 | B192: 1439 | C192: J.Morris-Expenses-Northern Counties Working Group-18/01/2017 | F192: 60 | AU192: 60 | AY192: 60
A193: 16/05/2017 | B193: 1440 | C193: H.Tattersall-Postage/Stationery etc | F193: 47.18 | AL193: 47.18 | AY193: 47.18
A194: Total Expenditure | D194: =SUM(D17:D190) -> 0 | F194: =SUM(F10:F193) -> 20141.62 | G194: =SUM(G10:G193) -> 0 | H194: -63.36 | I194: 0 | J194: 0 | K194: 0 | L194: -25 | M194: 633 | N194: 15 | O194: 0 | P194: 755.11 | Q194: 0 | R194: 1394.86 | S194: 1519.88 | T194: 7038.01 | U194: 183 | V194: 175.78 | W194: 131.9 | X194: 365.1 | Y194: 0 | Z194: 0 | AA194: 1506.7 | AB194: 200 | AC194: 88.62 | AD194: 161 | AE194: 212 | AF194: 0 | AG194: 220 | AH194: 0 | AI194: 0 | AJ194: 180 | AK194: 119.1 | AL194: 125.88 | AM194: 279.43 | AN194: 509.56 | AO194: 57.8 | AP194: 0 | AQ194: 280 | AR194: 0 | AS194: 0 | AT194: 0 | AU194: 60 | AV194: 2174 | AW194: 2104.25 | AX194: -260 | AY194: 20141.62
A196: Cash | F196: =D194 -> 0
AY197: =AY194+AY196 -> 20141.62
A198: Total Expenditure | F198: =F194+F196 -> 20141.62 | AY198: =F194-AY197 -> 0
A201: Cheques not presented | C201: See above(all items in black, not red in Bankn column) | F201: =F171+F170+F168+F167+F166+F143+F38+F175+F176+F184+F185+F186+F187+F188+F189+F190+F192+F193 -> 2560.23
K203: 489.6

Sheet Balance Sheet
A1: Manchester County Bridge Association
A2: Balance Sheet as at 31st March 2017
B4: 2016-2017 | C4: 2015-2016 | D4: 2014 - 2015 | E4: 2013 - 2014 | G4: 2012 - 2013 | I4: 2011 -2012 | K4: 2010 - 2011 | M4: 2009-2010 | O4: 2008-2009
A6: Trophies | B6: 834 | C6: 834 | D6: 834 | E6: 834 | G6: 834 | I6: 834 | K6: 834 | M6: 834 | O6: 834
A7: P.A.System | B7: 0 | C7: 0 | D7: 0 | E7: 0 | G7: 67 | I7: 167 | K7: 267 | M7: 267 | O7: 267
A9: Fixed Assets | B9: =SUM(B6:B8) -> 834 | C9: =C6+C7 -> 834 | D9: =D6+D7 -> 834 | E9: =SUM(E6:E8) -> 834 | G9: 901 | I9: =SUM(I6:I7) -> 1001 | K9: =SUM(K6:K7) -> 1101 | M9: =SUM(M6:M8) -> 1101 | O9: =SUM(O6:O8) -> 1101
A11: Bank Reserve Account - Skipton BS | B11: ='Reserve Accounts'!C9 -> 6873.98 | C11: ='Reserve Accounts'!D9 -> 9793.7 | D11: 11718.7 | E11: 11644.18 | G11: 11560.36 | I11: 11586.88 | K11: 11454.29 | M11: 11239.54 | O11: 11000
A12: Current Account | B12: =Income!F188 -> 8551.72 | C12: 3760.23 | D12: 3826.78 | E12: 5774.25 | G12: 8402.66 | I12: 6779.46 | K12: 4030.93 | M12: 4246.38 | O12: 2717.03
A13: Cash in Hand | B13: 0 | C13: 14 | D13: 0 | E13: 0 | G13: 0 | I13: 0 | K13: 0 | M13: =[1]Income!D137 -> 0 | O13: 200
A14: Sundry Debtors - note 19 | B14: ='Notes 2016-17'!E277 -> 2683.18 | C14: 1055 | D14: 116.2 | E14: 0 | G14: 0 | I14: 0 | K14: =6+81 -> 87 | M14: 500 | O14: 100
A15: Sundry Creditors - note 20 | B15: =-'Notes 2016-17'!E286 -> -3060.23 | C15: -3055.25 | D15: -2853.1 | E15: -2886.06 | G15: -2707.63 | I15: -2181.24 | K15: =-([1]Income!F138) -> 0 | M15: -1301.62 | O15: -441.5
A17: Total Current Assets | B17: =SUM(B11:B16) -> 15048.65 | C17: =SUM(C11:C16) -> 11567.68 | D17: =SUM(D11:D16) -> 12808.58 | E17: =SUM(E11:E16) -> 14532.37 | G17: =SUM(G11:G16) -> 17255.39 | I17: =SUM(I11:I16) -> 16185.1 | K17: =SUM(K11:K15) -> 15572.22 | M17: =SUM(M11:M16) -> 14684.3 | O17: =SUM(O11:O16) -> 13575.53
A19: Net Assets | B19: =B9+B17 -> 15882.65 | C19: =C9+C17 -> 12401.68 | D19: =D9+D17 -> 13642.58 | E19: =E9+E17 -> 15366.37 | G19: =G9+G17 -> 18156.39 | I19: =I9+I17 -> 17186.1 | K19: =K9+K17 -> 16673.22 | M19: =M9+M17 -> 15785.3 | O19: =O9+O17 -> 14676.53
A21: Reserves Brought Forward | B21: =C24 -> 12401.68 | C21: =D24 -> 13642.58 | D21: =E24 -> 15366.37 | E21: =G24 -> 18156.39 | F21: 0 | G21: 17186.1 | H21: 0 | I21: 14942.67 | J21: 0 | K21: 15785.3 | L21: 0 | M21: 14676.53 | O21: 13331.5
A22: Surplus/Deficit for the Year | B22: ='Income & Expenditure (2)'!D48 -> 3480.97 | C22: -1240.9 | D22: =D19-D21 -> -1723.79 | E22: =E19-E21 -> -2790.02 | G22: =G19-G21 -> 970.29 | H22: =H19-H21 -> 0 | I22: 2243.43 | J22: =J19-J21 -> 0 | K22: -842.63 | L22: =L19-L21 -> 0 | M22: =M19-M21 -> 1108.77 | N22: =N19-N21 -> 0 | O22: =O19-O21 -> 1345.03
A24: Reserves Carried Forward | B24: =SUM(B21:B23) -> 15882.65 | C24: =SUM(C21:C23) -> 12401.68 | D24: =SUM(D21:D23) -> 13642.58 | E24: =SUM(E21:E23) -> 15366.37 | G24: =SUM(G21:G23) -> 18156.39 | I24: =SUM(I21:I23) -> 17186.1 | K24: =K21+K22 -> 14942.67 | M24: =M21+M22 -> 15785.3 | O24: =O21+O22 -> 14676.53

Sheet Opening Debtors & Creditors
A1: Manchester County Bridge Association
A3: Sundry Creditors as at 31st March 2016
B4: Unpresented Cheques:
B5: 1320 | C5: R.Lighton-website expenses | F5: 71.84
B6: 1321 | C6: cheque destroyed
B7: 1322 | C7: EBU-Ben Franks P2P | F7: 14.76
B8: 1323 | C8: K.Nelson - Cup Prizes | F8: 250
B9: 1326 | C9: J.Lewis-Plate final-directing | F9: 80
B10: 1327 | C10: J.Smith - Cup directing | F10: 80
B11: 1328 | C11: ABC-Cup & Plate Finals:Hand records£16/Duplimating Brds £30 | F11: 46
B12: 1329 | C12: MBC-Cup & Plate Finals: 18 tables@£12 | F12: 216
B13: 1330 | C13: S.Davies: NBL-4 teams @ £75 | F13: 300
B14: 1331 | C14: Expert Player of Year-Michael Newman | F14: 50
B15: 1332 | C15: Joint Intermediate POY- Graham Campbell | F15: 25
B16: 1333 | C16: Joint Intermediate POY - George Leigh | F16: 25
B17: 1334 | C17: I.Davies-engraving 3 trophies for POY | F17: 19.5
B18: 1335 | C18: H.Tattersall-repayt of cash provided for Gazette Cup | F18: 9.17
B19: 1336 | C19: EBU Inv 574886-Congress License Fees | F19: 250.92
B20: 1337 | C20: EBU inv 578684-License Fees Gazette=£28.44/League Div 7 last year=£61.20 | F20: 89.64
B21: 1339 | C21: EBU inv.580623-License Fees GP Pairs on 5/03/16 | F21: 370.14
B22: 1340 | C22: EBU inv.580977 - License Fees-Garden Cities final | F22: 260
B23: 1341 | C23: EBU inv.579890 - Corwen Trophy entry fees-chq cancelled
B24: 1342 | C24: League cup engraving | F24: 50
B25: 1343 | C25: Treasurers Expenses-2015/16-postage | F25: 22.68
B26: 1344 | C26: Garden Cities final - ERROR | F26: 260
F27: =SUM(F5:F26) -> 2490.65
B29: Estimated EBU license fee for League 2015/16 | F29: 489.6
B31: Total Sundry Opening Creditors | F31: =F27+F29 -> 2980.25
B34: Sundry Creditors as at 31st March 2016:
B36: League - Net Overpayments | D36: 104
B37: Prepaid Room Bookings for 2016-17:
B38: Summer Int. Pairs | D38: 92
B39: GP Pairs 2016 | D39: 50
B40: GP Teams 2016 | D40: =184+50 -> 234
B41: Manchester Congress Deposit | D41: 500
C42: Total Prepayments: | D42: =SUM(D38:D41) -> 876
B44: Total Sundry Creditors as at 31st March 2016: | D44: =D36+D42 -> 980

Sheet Income & Expenditure (2)
A1: Manchester County Bridge Association
A2: Income & Expenditure Account to 31st March 2017 | H2: Improvement
D3: This Year | F3: Last Year | H3: in Income
A4: Income (net) - see notes for detail | B4: Note | D4: 2016-2017 | F4: 2015-2016 | H4: £
A6: EBU P2P Clubs | B6: 1 | D6: ='Notes 2016-17'!E9 -> 2872.66 | F6: 2383.78 | H6: =D6-F6 -> 488.88
A7: Direct Members | D7: =Income!G172 -> 235 | F7: 0 | H7: =D7-F7 -> 235
A8: Affiliation Fees | B8: 2c | D8: ='Notes 2016-17'!E26 -> 252 | F8: 251 | H8: 1
A9: Bridge For All | D9: 0 | F9: 63 | H9: -63
A10: Manchester League | B10: 2a | D10: ='Notes 2016-17'!E20 -> 1937.86 | F10: 1135.4 | H10: 802.46
A11: Higson Memorial Cup & Plate | B11: 3 | D11: ='Notes 2016-17'!E42 -> -138 | F11: -177 | H11: 39
A12: Extra Players Fees in League & Cup | B12: 2b | D12: ='Notes 2016-17'!E24 -> 370 | F12: 350 | H12: 20
A13: Gazette Trophy | B13: 4 | D13: ='Notes 2016-17'!E60 -> -10.11 | F13: 45.39 | H13: -55.5
A14: Merville Goldstone Cup (Pachabo Qualifier) | D14: =Income!R180 -> -80 | F14: -80 | H14: 0
A15: Green Point Pairs | B15: 5 | D15: ='Notes 2016-17'!E77 -> 517.14 | F15: 329.86 | H15: 187.28
A16: Green Point Teams | B16: 6 | D16: ='Notes 2016-17'!E96 -> 560.12 | F16: 312.78 | H16: 247.34
A17: Manchester Congress | B17: 7 | D17: ='Notes 2016-17'!E117 -> 275.29 | F17: -945.37 | H17: 1220.66
A18: Ben Franks | B18: 8 | D18: ='Notes 2016-17'!E134 -> 94.5 | F18: 17.84 | H18: 76.66
A19: Summer Intermediate Pairs | B19: 9 | D19: ='Notes 2016-17'!E150 -> 64.22 | F19: 20.3 | H19: 43.92
A20: Autumn Intermediate Pairs | B20: 10 | D20: ='Notes 2016-17'!E166 -> 140.1 | F20: 6.13 | H20: 133.97
A21: Cantor Cup | B21: 11 | D21: ='Notes 2016-17'!E184 -> -181.1 | F21: -8.06 | H21: =D21+D22-F21 -> 8.06
A22: Contribution from Cantor Reserve Account (Debtor) | B22: 11 | D22: 181.1
A23: Interest Skipton Building Society 2016 - 2017 | D23: ='Reserve Accounts'!C7 -> 80.28 | F23: 75 | H23: 5.28
A24: Prior Year Adjustments | B24: 18 | D24: ='Notes 2016-17'!E245 -> 260 | F24: 347 | H24: -87
A25: Total net Income | D25: =SUM(D6:D24) -> 7431.06 | F25: =SUM(F6:F24) -> 4127.05 | H25: =SUM(H6:H24) -> 3304.01
A27: Expenses | H27: Improvement
H28: in Costs:
A29: Northern Bridge League (NBL) | D29: =' Expenses'!AI194 -> 0 | F29: 300 | H29: =F29-D29 -> 300
A30: All Counties Super Final | D30: =' Expenses'!AJ194 -> 180 | F30: 180 | H30: =F30-D30 -> 0
A31: Derbyshire Friendly | D31: =' Expenses'!AH194 -> 0 | F31: 375.3 | H31: 375.3
A32: Representative Competitions/Matches | B32: 12 | D32: ='Notes 2016-17'!E198 -> 2138.7 | F32: 3165.4 | H32: 1026.7
A33: Northern Counties Working Group | D33: =' Expenses'!AU194 -> 60 | F33: 60 | H33: 0
A34: Youth Budget | B34: 13 | D34: =' Expenses'!AP194 -> 0 | F34: 200 | H34: 200
A35: Handbook Expenses | B35: 17 | D35: =' Expenses'!AN194 -> 509.56 | F35: 0 | H35: -509.56
A36: EBU Delegate Expenses | D36: =' Expenses'!AK194 -> 119.1 | F36: 369.9 | H36: 250.8
A37: Trophy Engraving/Trophy Repairs | D37: =' Expenses'!AS194 -> 0 | F37: 12 | H37: 12
A38: Printing/Postage/Stationery/Telephone/Travel | D38: =' Expenses'!AL194 -> 125.88 | F38: 45.58 | H38: -80.3
A39: Retirement Gifts/Presentations/Receptions | B39: 14 | D39: ='Notes 2016-17'!E215 -> 181 | F39: 189.5 | H39: 8.5
A40: Bridge stationery & equipment & Insurance | B40: 16 | D40: =' Expenses'!AM194 -> 279.43 | F40: 71.1 | H40: -208.33
A41: Seminars | B41: 15 | D41: =-'Notes 2016-17'!E227 -> 210 | F41: 300 | H41: 90
A42: Web Site Costs | D42: =' Expenses'!AC194 -> 88.62 | F42: 71.84 | H42: -16.78
A43: AGM Expenses | D43: =' Expenses'!AO194 -> 57.8 | F43: 27.33 | H43: -30.47
A44: Depreciation | D44: 0 | F44: 0 | H44: 0
A46: Total Expenses | D46: =SUM(D29:D45) -> 3950.09 | F46: =SUM(F29:F45) -> 5367.95 | H46: 1417.86
A48: Surplus of Income over Expenditure (Profit) | D48: =D25-D46 -> 3480.97 | F48: =F25-F46 -> -1240.9 | H48: =D48-F48 -> 4721.87
H49: Total of
A50: Current Assets Balance from last year | D50: 12401.68 | H50: Improvement
H51: over last year
A52: Total Current Assets | D52: =SUM(D48:D51) -> 15882.65

Sheet Notes 2016-17
A1: Manchester County Bridge Association
A2: Notes to the Accounts for the year ended 31st March 2017
E3: 2016/17
A4: Note
A6: 1 | B6: EBU P2P Income
B7: Received during year | E7: =Income!H180 -> 2554.58
B8: Debtor-Mar income | E8: =E272 -> 318.08
C9: Total | E9: =SUM(E7:E8) -> 2872.66
A11: 2a) | B11: Manchester League 2016 - 2017
B12: Income:
B13: 65 Teams @ £35 , plus 1 @£17.50 | E13: =Income!I172+Income!L180 -> 2292.5
B14: Write-off yr-end balances: | E14: =Income!O180 -> 32
B15: Over-provision in 2015-16 for P2P re League | E15: =-' Expenses'!H194 -> 63.36
C16: Total | E16: =SUM(E13:E15) -> 2387.86
B17: Expenses:
B18: Estimated P2P charge from EBU - Note 17 | E18: 450
B20: Profit | E20: =E16-E18 -> 1937.86
A22: 2b) | B22: Extra Players, | E22: =Income!M180 -> 360
B23: including £10 debtor below-Note 16 | E23: =E273 -> 10
C24: Total | E24: =SUM(E22:E23) -> 370
A26: 2c) | B26: Affiliation Fees | E26: =Income!K180 -> 252
A28: 3 | B28: Higson Memorial Cup & Plate
B29: Income:
B30: Gross Receipts (35 teams @ £15), plus 11 free | E30: =Income!J180+Income!N172 -> 525
C31: Total | E31: =SUM(E30:E30) -> 525
B32: Expenses
B34: Prizes | E34: 250
B35: Director's Fees | E35: 115
B36: Room Hire | E36: 228
B37: Duplimating & Copying Hands - ABC | E37: 40
B38: Engraving (provision) | E38: 10
B39: Estimated P2P charge for final (Provision) | E39: 20
C40: Total | E40: =SUM(E34:E39) -> 663
B42: Loss | E42: =E31-E40 -> -138
A45: 4 | B45: Gazette Trophy - Feb.
B47: Income: | E47: =Income!Q172+20 -> 765
B49: Expenses:
B50: Hire of Hall | E50: =' Expenses'!P80 -> 138
B51: Tournament Director | E51: =' Expenses'!P143 -> 80
B52: Hire of Equipment - Altrincham Bridge Club | E52: =' Expenses'!P147 -> 45
B53: Refreshments for Players | E53: =' Expenses'!P142+' Expenses'!P140 -> 369.11
B54: Caretaker gratuity | E54: 20
B55: EBU Masterpoints | E55: =' Expenses'!P189 -> 27
B56: Prizes | E56: =' Expenses'!P141 -> 96
C58: Total | E58: =SUM(E50:E57) -> 775.11
B60: Loss | E60: =E47-E58 -> -10.11
A62: 5 | B62: Manchester Green Points Pairs - March
B64: Income: | E64: =Income!S154+Income!S159 -> 2010
B66: Expenses:
B67: Hire of Hall | E67: =' Expenses'!R12+' Expenses'!R92 -> 184
B68: Director | E68: =' Expenses'!R158+' Expenses'!R160 -> 241
B69: Printing | E69: =-Income!S157 -> 20
B70: Hire of Equipment/Boards/Hand Records | E70: =' Expenses'!R164+' Expenses'!R161 -> 146
B71: EBU - One Day Event | E71: =' Expenses'!R190 -> 373.86
B72: Refreshments for Players | E72: =-Income!S156 -> 60
B73: Prizes | E73: =' Expenses'!R163-Income!S155 -> 458
B74: Gratuity-Caretaker | E74: =' Expenses'!R162 -> 10
C75: Total | E75: =SUM(E67:E74) -> 1492.86
B77: Profit | E77: =E64-E75 -> 517.14
A79: 6 | B79: Manchester Green Points Teams - July
B81: Income: | E81: =Income!T62 -> 2080
B83: Expenses:
B84: Director - D Stevenson | E84: =' Expenses'!S62 -> 181
B85: Director - J Lewis | E85: =' Expenses'!S64 -> 55
B86: Altrincham Bridge Club-equipment & boards | E86: =' Expenses'!S67 -> 138
B87: Prizes | E87: =' Expenses'!S69 -> 488
B88: Hire of Hall | E88: =' Expenses'!S13 -> 184
B89: Refreshments | E89: =' Expenses'!S70 -> 42
B90: EBU Licence Fee | E90: =' Expenses'!S81 -> 386.88
B91: Printing flyers & Posters / Postage | E91: =' Expenses'!S71+' Expenses'!S66 -> 35
B92: Gratuity - Caretaker | E92: =' Expenses'!S65 -> 10
C93: Total | E93: =SUM(E84:E92) -> 1519.88
B94: Total Expenses
B96: Profit | E96: =E81-E93 -> 560.12
A98: 7 | B98: Manchester Congress
B100: Income:
B101: Entry Fees | E101: =Income!U136+Income!U137+Income!U138+Income!U140+Income!U145-' Expenses'!T132 -> 6996
B102: Prize donated by Jeff Morris on behalf of Manchester Bridge Club | E102: =-' Expenses'!T125 -> 100
C103: Total | E103: =SUM(E101:E102) -> 7096
B105: Expenses:
B106: Tea and Coffee | E106: =' Expenses'!T127-Income!U141-Income!U146 -> 104.5
B107: Room Hire | E107: =' Expenses'!T14+' Expenses'!T84 -> 3312
B108: Printing / Postage / Stationery | E108: =' Expenses'!T74+' Expenses'!T97+' Expenses'!T126+' Expenses'!T134 -> 137.05
B109: Engraving | E109: =' Expenses'!T98 -> 84
B110: Directing | E110: =' Expenses'!T114+' Expenses'!T115+' Expenses'!T116+' Expenses'!T117+' Expenses'!T119 -> 1133.2
B111: Hire of Equipment / Boards / Hand records | E111: =' Expenses'!T120+' Expenses'!T121+' Expenses'!T122+' Expenses'!T130 -> 130
B112: Prizes | E112: =' Expenses'!T124+' Expenses'!T129 -> 1611
B113: Gratuity | E113: =' Expenses'!T133 -> 5
B114: EBU License Fee | E114: =' Expenses'!T188 -> 303.96
C115: Total | E115: =SUM(E106:E114) -> 6820.71
B117: Profit | E117: =E103-E115 -> 275.29
A119: 8 | B119: Ben Franks Trophy - Dec.
B121: Income: | E121: =Income!V129 -> 612
B123: Expenses:
B124: Room Hire | E124: =' Expenses'!U89 -> 156
B125: Boards and Hand Records | E125: =-Income!V130 -> 20
B126: Prize Money | E126: =-Income!V133 -> 200
B127: Tournament Director | E127: =-Income!V131 -> 80
B128: Refreshments | E128: =-Income!V132 -> 34.5
B129: Publicity & Postage | E129: 0
B130: EBU Masterpoints | E130: =' Expenses'!U86 -> 18
B131: Engraving | E131: =' Expenses'!U95 -> 9
C132: Total | E132: =SUM(E124:E131) -> 517.5
B134: Profit | E134: =E121-E132 -> 94.5
A136: 9 | B136: Summer Intermediate Pairs - June
B138: Income: | E138: =Income!W37-' Expenses'!V51 -> 416
B140: Expenses:
B141: Hire of Hall | E141: =' Expenses'!V11 -> 92
B142: Directing | E142: =' Expenses'!V52 -> 45
B143: Hire of Equipment / Duplimated Boards / Hand Records | E143: =' Expenses'!V53+' Expenses'!V57 -> 30
B144: Refreshments | E144: =' Expenses'!V59+' Expenses'!V58 -> 28.5
B145: Printing / Postage / Stationery | E145: =' Expenses'!V55+' Expenses'!V56 -> 5.3
B146: Prizes | E146: =' Expenses'!V60+' Expenses'!V61 -> 139.98
B147: Gratuities | E147: =' Expenses'!V54 -> 11
C148: Total | E148: =SUM(E141:E147) -> 351.78
B150: Profit | E150: =E138-E148 -> 64.22
A152: 10 | B152: Autumn Intermediate Pairs
B154: Income: | E154: =Income!X125+Income!X126-' Expenses'!W102 -> 488
B156: Expenses:
B157: Hire of Hall | E157: =' Expenses'!W79 -> 92
B158: Directing | E158: =' Expenses'!W103+' Expenses'!W104 -> 21
B159: Hire of Equipment / Duplimated Boards / Hand Records | E159: =' Expenses'!W105+' Expenses'!W107 -> 32
B160: Refreshments | E160: =' Expenses'!W108 -> 39.5
B161: Printing / Postage / Stationery | E161: =' Expenses'!W109+' Expenses'!W110 -> 6.4
B162: Prizes | E162: =' Expenses'!W111 -> 147
B163: Gratuities | E163: =' Expenses'!W106 -> 10
C164: Total | E164: =SUM(E157:E163) -> 347.9
B166: Profit | E166: =E154-E164 -> 140.1
A168: 11 | B168: Cantor Cup - Feb
B169: A gift of £6k has been received from the Cantor family-to be kept in separate reserve account.
B171: Income:
B172: Entrance Fees | E172: =Income!Y152-' Expenses'!X149 -> 372
B174: Expenses:
B175: Room Hire - MBC | E175: =' Expenses'!X150 -> 150
B176: Director - Joan Lewis | E176: =' Expenses'!X151 -> 45
B177: Hire of Equipment / Duplimated Boards / Hand Records | E177: =' Expenses'!X152 -> 15
B178: Refreshments | E178: =' Expenses'!X155 -> 88
B179: Printing / Postage / Stationery | E179: =' Expenses'!X153+' Expenses'!X154 -> 6.4
B180: Prizes | E180: =' Expenses'!X156 -> 213
B181: Trophies (for 3 years, but w/off here) | E181: =' Expenses'!X144 -> 35.7
C182: Total | E182: =SUM(E175:E181) -> 553.1
B184: Loss | E184: =E172-E182 -> -181.1
B185: Contribution due from Cantor Cup Reserve Account | E185: 181.1
B186: Cost to MCBA | E186: =SUM(E184:E185) -> 0
A188: 12 | B188: Expenses for Representative Competitions
B190: Pachabo Cup | E190: =' Expenses'!AE194 -> 212
B191: Garden Cities | E191: =' Expenses'!AF194 -> 0 | G191: £260 fees for this year were charged to last year.
B192: Corwen - Entry | E192: =' Expenses'!AB194 -> 200
B193: President's Cup - Entry | E193: =' Expenses'!AG194 -> 220
B194: Tollemache Cup - Entry | E194: =' Expenses'!AA76 -> 416
B195: Expenses for Tollemache | E195: =' Expenses'!AA194-416 -> 1090.7
B196: Camrose | E196: =' Expenses'!AT194 -> 0
B198: Total Cost | E198: =SUM(E190:E197) -> 2138.7
A201: 13 | B201: Youth Budget
B203: Youth Expenditure | E203: =' Expenses'!AP194 -> 0
B205: Total Cost | E205: =SUM(E203:E203) -> 0
A207: 14 | B207: Retirement Gifts/Presentations/Receptions
B209: Joint Players of the Year 2 @ £25 | E209: 50
B210: Intermediate Player of the Year | E210: 50
B211: Present-Eve Lighthill | E211: =' Expenses'!AD99 -> 39.5
B212: Present-Joan Lewis | E212: =' Expenses'!AD112 -> 21.5
B213: Trophies engraved for POY's (Provision) | E213: 20
B215: Total Cost | E215: =SUM(E209:E213) -> 181
A217: 15 | B217: Seminars
B219: County B Team Seminar:
B220: Income: | C220: Total | E220: =Income!AC172 -> 70
B222: Expenses:
B223: Teaching | E223: =' Expenses'!AQ21 -> 250
B224: Room Hire | E224: =' Expenses'!AQ22 -> 30
C225: Total: | E225: =SUM(E223:E224) -> 280
B227: Total Cost | E227: =E220-E225 -> -210
A229: 16 | B229: Equipment/Insurance/Bridge Stationery
B231: PA Sysytem-w/off all in 1st year | E231: 149
B232: Boards and Boxes- w/off all in 1st year | E232: 57.23
B233: Insurance | E233: 73.2
B235: Total Cost | E235: =SUM(E231:E233) -> 279.43
A237: 17 | B237: Handbook Expenses
B238: Printing | E238: =' Expenses'!AN72+' Expenses'!AN44 -> 485.55 | G238: Note: This includes last year's costs, which were claimed late.
B239: Postage | E239: =' Expenses'!AN45+' Expenses'!AN91 -> 24.01 | H239: i.e. This is 2 year's costs.
B241: Total Cost | E241: =SUM(E238:E239) -> 509.56
A243: 18 | B243: Prior Year Adjustments
B244: Error : Unpresented Chques overstated last year | E244: =-' Expenses'!AX42 -> 260 | G244: (Last year: Garden City costs overstated by a duplicated entry in unpresented cheques.)
C245: Total | E245: =SUM(E244) -> 260
B247: Items charged in wrong year - Notes only:
B248: Merville Goldstone Prizes - late claim this year for last year | E248: -80
B249: Garden Cities entry fee charged to last year in error | E249: 260
B250: Over-provision for EBU League license for last year | E250: 63.36
B251: Handbook expenses for last year - late claim this year for last year | E251: -261.98 | G251: 2 years costs charged to this year
B252: NBL-charged to last year | E252: 300
C253: Total | E253: =SUM(E248:E252) -> 281.38
B255: Net effect on this year's profit: | E255: =E245+E253 -> 541.38 | F255: added
A257: 19 | B257: Debtors and Prepayments:
B258: Prepaid Room Bookings for 2017-18:
B259: GP Teams -July 2017 | E259: =' Expenses'!AV13+' Expenses'!AV93 -> 184
B260: Summer Int. Pairs - June 2017 | E260: =' Expenses'!AV85 -> 92
B261: Manchester Congress Deposit | E261: =' Expenses'!AV145 -> 500
B262: Prepayments-Room Bookings | E262: =SUM(E259:E261) -> 776
B263: Pre-paid Tournament Fees for 2017-18:
E264: 255
B265: EBU-Pachabo entry | E265: 219
... 18 more rows

Sheet Cantor Accounts
A2: CANTOR ACCOUNTS
A3: NatWest Reserve Account (Property of Cantor family, managed by MCBA):
A5: Bank Balance. | C5: 2016-17 | F5: Income & Expenditure A/c:
F6: Income:
A7: Balance B/F | C7: =D11 -> 0 | F7: Donation | I7: 6000
A8: Cantor Donation | C8: 6000 | F8: Interest | I8: 0.18
A9: Interest | C9: 0.18 | I9: =SUM(I7:I8) -> 6000.18
A10: Balance C/F | C10: =SUM(C7:C10) -> 6000.18 | F10: Expenditure:
F11: Contribution to MCBA in 2016-17 | I11: =-'Notes 2016-17'!E185 -> -181.1
F12: Note 10. and Yr/end Creditor
G13: Net Income | I13: =SUM(I9:I11) -> 5819.08
F15: Balance Sheet:
F16: Asset-Bank Bal. | H16: 6000.18
F17: Liability-Owed to MCBA | H17: =I11 -> -181.1
G18: Net Assets | H18: =SUM(H16:H17) -> 5819.08
F20: Reserves Brought Forward | H20: 0
F21: Surplus/Deficit for the Year | H21: =I13 -> 5819.08
G22: ReservesC/f | H22: =SUM(H20:H21) -> 5819.08

Sheet League Calculations
A1: Balances Brought Forward:
A2: Underpayments | C2: 75
A3: Overpayments | C3: 179
A4: Net overpayment c/f into 2016/17 | C4: =C3-C2 -> 104
A6: Reconciliation to League Spread-sheet
A7: The totals of every column in the League ss agrees to every column total in the cash-book exactly.
A8: Final Balances:
A9: Final net of overpaid less underpaid balances: | C9: 32
A10: These balances will be written off and added to League Income, so that the new Treasurer can start with a clean slate.
